No of Trans,Dept Family,Entity Name,Cert Date,Supplier Name,Reference,Gross Amt,Group/Department,Type of Expenditure - Subjective Codes
1,DCMS,EH,06/02/2014,ESRI (UK) Ltd,0040055263,"208,035.23 ",Resources-IMT,Software Maintenance
2,DCMS,EH,04/02/2014,Oxford Archaeological Unit Ltd,0040054729,"34,800.00 ",Heritage Protection & Planning-Heritage Protection,Hist Environ Prog Projects Gra
3,DCMS,EH,10/02/2014,William Anelay Limited,0040055381,"153,360.00 ",Heritage Protection & Planning-Nat. Planning & Conservation,Works for Heritage Buildings
4,DCMS,EH,24/02/2014,Wessex Archaeology,0040055902,"50,000.00 ",Heritage Protection & Planning-Heritage Protection,Maritime Commissions
5,DCMS,EH,24/02/2014,Sykes and Son Limited,0040055319,"228,769.84 ",National Collections-Major Conservation Projects,Works for Heritage Buildings
6,DCMS,EH,12/02/2014,PAYE Stonework and Restoration Ltd,0040055030,"7,739.54 ",National Collections-Major Conservation Projects,WIP Operational Building Works
7,DCMS,EH,12/02/2014,PAYE Stonework and Restoration Ltd,0040055030,"18,058.96 ",National Collections-Major Conservation Projects,WIP Operational Building Works
8,DCMS,EH,17/02/2014,Gillards Worldwide,0040055637,"28,920.32 ",National Collections-Historic Properties Department,Exhibits/Displays
9,DCMS,EH,05/02/2014,Rivermeade Signs Ltd,0040054490,"34,623.60 ",National Collections-Major Conservation Projects,Signage
10,DCMS,EH,06/02/2014,Ratcliffes,0040055328,"45,217.91 ",Resources-Office Estate,Insurance
11,DCMS,EH,11/02/2014,Hutchinson Environmental Solutions Ltd,0040055476,"30,363.86 ",National Collections-Major Conservation Projects,Works for Heritage Buildings
12,DCMS,EH,11/02/2014,Hutchinson Environmental Solutions Ltd,0040055476,"7,341.54 ",National Collections-Property Maintenance Programme,Works for Heritage Buildings
13,DCMS,EH,11/02/2014,Hutchinson Environmental Solutions Ltd,0040055476,"8,925.74 ",National Collections-Major Conservation Projects,Works for Heritage Buildings
14,DCMS,EH,19/02/2014,B Smith Packaging (Worcester) Ltd,0040052774,"40,551.28 ",National Collections-Historic Properties Department,Consumable Materials
15,DCMS,EH,26/02/2014,Enterprise Rent A Car UK Ltd,0020054125,(5.00),Resources-Corporate,Car Hire
16,DCMS,EH,26/02/2014,Enterprise Rent A Car UK Ltd,0020054125,"32,880.40 ",Resources-Corporate,Car Hire
17,DCMS,EH,28/02/2014,Pace Fuelcare Ltd,0040056033,"25,595.34 ",National Collections-Historic Properties Department,Gas & Oil
18,DCMS,EH,04/02/2014,Robert Woodhead Ltd,0040054532,"140,692.96 ",National Collections-Capital Investment Programme,WIP Operational Building Works
19,DCMS,EH,24/02/2014,Mountjoy Ltd,0040056174,"157,338.43 ",National Collections-Capital Investment Programme,WIP Operational Building Works
20,DCMS,EH,19/02/2014,The Churches Conservation Trust,0040055762,"51,125.00 ",National Collections-Curatorial Department,Other Grants
21,DCMS,EH,04/02/2014,Capita Secure Information Solutions Ltd,0040052381,"246,784.62 ",Resources-IMT,ITFM
22,DCMS,EH,07/02/2014,Capita Secure Information Solutions Ltd,0040055144,"47,865.60 ",Resources-IMT,Software Licences <10k
23,DCMS,EH,07/02/2014,Constantine Ltd,0040054402,"27,936.00 ",National Collections-Capital Investment Programme,Works for Heritage Buildings
24,DCMS,EH,07/02/2014,Constantine Ltd,0040054402,"10,524.00 ",National Collections-Capital Investment Programme,Works for Heritage Buildings
25,DCMS,EH,07/02/2014,The Hub Limited,0040054968,"32,794.30 ",National Collections-Capital Investment Programme,WIP Professional Works Advice
26,DCMS,EH,17/02/2014,Universal Stone Limited,0040055254,"37,391.86 ",National Collections-Major Conservation Projects,Works for Heritage Buildings
27,DCMS,EH,26/02/2014,Vinci Construction UK Ltd,0040056701,"8,092.80 ",National Collections-Capital Investment Programme,Works for Heritage Buildings
28,DCMS,EH,26/02/2014,Vinci Construction UK Ltd,0040056701,"24,918.00 ",National Collections-Capital Investment Programme,Works for Heritage Buildings
29,DCMS,EH,26/02/2014,Vinci Construction UK Ltd,0040056701,"28,303.20 ",National Collections-Capital Investment Programme,Works for Heritage Buildings
30,DCMS,EH,26/02/2014,Vinci Construction UK Ltd,0040056701,929.99 ,National Collections-Capital Investment Programme,Works for Heritage Buildings
31,DCMS,EH,26/02/2014,Vinci Construction UK Ltd,0040056701,"69,552.00 ",National Collections-Capital Investment Programme,Works for Heritage Buildings
32,DCMS,EH,26/02/2014,Vinci Construction UK Ltd,0040056701,"18,856.80 ",National Collections-Capital Investment Programme,Works for Heritage Buildings
33,DCMS,EH,26/02/2014,Vinci Construction UK Ltd,0040056701,"13,404.00 ",National Collections-Capital Investment Programme,Works for Heritage Buildings
34,DCMS,EH,26/02/2014,Vinci Construction UK Ltd,0040056701,"14,918.40 ",National Collections-Capital Investment Programme,Works for Heritage Buildings
35,DCMS,EH,26/02/2014,Vinci Construction UK Ltd,0040056701,"98,994.00 ",National Collections-Capital Investment Programme,Works for Heritage Buildings
36,DCMS,EH,26/02/2014,Vinci Construction UK Ltd,0040056701,"5,820.00 ",National Collections-Capital Investment Programme,Works for Heritage Buildings
37,DCMS,EH,26/02/2014,Vinci Construction UK Ltd,0040056701,"3,296.40 ",National Collections-Capital Investment Programme,Works for Heritage Buildings
38,DCMS,EH,19/02/2014,Bond Dickinson LLP,0040051837,"41,124.46 ",National Advice & Information-Governance & Legal Department,Legal Fees
39,DCMS,EH,19/02/2014,Greenfold Systems Ltd,0040048718,"161,026.80 ",National Collections-Capital Investment Programme,WIP Asset Purch Over 10k
40,DCMS,EH,19/02/2014,William Birch & Sons Ltd,0040054335,"77,377.06 ",National Collections-Capital Investment Programme,WIP Operational Building Works
41,DCMS,EH,12/02/2014,William Birch & Sons Ltd,0040054860,"80,658.43 ",National Collections-Capital Investment Programme,WIP Operational Building Works
42,DCMS,EH,24/02/2014,William Birch & Sons Ltd,0040056178,"90,256.16 ",National Collections-Capital Investment Programme,WIP Operational Building Works
43,DCMS,EH,24/02/2014,Liveco Ltd,0040055781,"91,184.46 ",National Collections-Capital Investment Programme,WIP Operational Building Works
44,DCMS,EH,24/02/2014,Croft Building and Conservation Ltd,0040055813,"27,083.25 ",National Collections-Major Conservation Projects,Works for Heritage Buildings
45,DCMS,EH,03/02/2014,Lambert-gill Ltd,0040054391,"38,671.96 ",National Collections-Major Conservation Projects,Leased Accomodation Maint
46,DCMS,EH,19/02/2014,Pharos Generator Services Ltd,0020053974,"93,937.20 ",Resources-Human Resources,Responsive Maint Building
47,DCMS,EH,24/02/2014,J. Tomlinson Ltd,0040055629,"153,945.54 ",National Collections-Capital Investment Programme,WIP Operational Building Works
48,DCMS,EH,24/02/2014,T. Loughman & Co Ltd,0040056296,"59,905.26 ",National Collections-Capital Investment Programme,WIP Refurbishment Works
49,DCMS,EH,28/02/2014,Lorne Stewart PLC,0040056930,"46,433.33 ",National Collections-Major Conservation Projects,WIP Operational Building Works
50,DCMS,EH,26/02/2014,EDF  Direct Debits,0020054119,"28,191.16 ",Resources-Corporate,Electricity
51,DCMS,EH,17/02/2014,North of England Civic Trust,0090700213,"95,280.00 ",Heritage Protection & Planning-Nat. Planning & Conservation,OTHER GRANTS-GRANTS PAYABLE
52,DCMS,EH,28/02/2014,Diocese of Lincoln,0090513804,"30,000.00 ",Heritage Protection & Planning-Nat. Planning & Conservation,OTHER GRANTS-GRANTS PAYABLE
53,DCMS,EH,25/02/2014,The Heritage Alliance,0090513794,"33,868.00 ",Heritage Protection & Planning-Nat. Planning & Conservation,OTHER GRANTS-GRANTS PAYABLE
54,DCMS,EH,14/02/2014,North York Moors National Park,0090513788,"27,306.00 ",Heritage Protection & Planning-Nat. Planning & Conservation,OTHER GRANTS-GRANTS PAYABLE
55,DCMS,EH,04/02/2014,Vivacity Peterborough Culture &,0081002744,"43,683.43 ",Heritage Protection & Planning-Heritage Protection,ENABLING PROGRAMMES-ENABLING PROGRAMMES
56,DCMS,EH,26/02/2014,Cotswold Archaeology,0081002785,"50,000.00 ",Heritage Protection & Planning-Heritage Protection,ENABLING PROGRAMMES-ENABLING PROGRAMMES
57,DCMS,EH,12/02/2014,Council British Arch York,0081002760,"84,655.00 ",Heritage Protection & Planning-Heritage Protection,ENABLING PROGRAMMES-ENABLING PROGRAMMES
58,DCMS,EH,04/02/2014,Bournemouth University,0081002739,"28,807.60 ",Heritage Protection & Planning-Heritage Protection,ARCHAEOLOGY GRANTS-GRANTS PAYABLE
59,DCMS,EH,12/02/2014,Devon County Council,0081002755,"25,000.00 ",Heritage Protection & Planning-Heritage Protection,ENABLING PROGRAMMES-ENABLING PROGRAMMES
60,DCMS,EH,04/02/2014,Institute Of Field Archaeologists,0081002749,"32,362.49 ",Heritage Protection & Planning-Heritage Protection,ENABLING PROGRAMMES-ENABLING PROGRAMMES
61,DCMS,EH,26/02/2014,Institute Of Field Archaeologists,0081002795,"42,337.46 ",Heritage Protection & Planning-Heritage Protection,ENABLING PROGRAMMES-ENABLING PROGRAMMES
62,DCMS,EH,21/02/2014,South Gloucestershire Council,0082002610,"48,000.00 ",Heritage Protection & Planning-Nat. Planning & Conservation,HISTORIC BUILDINGS-GRANTS PAYABLE
63,DCMS,EH,17/02/2014,Saxby All Saints Parish Church,0082002584,"52,000.00 ",Heritage Protection & Planning-Nat. Planning & Conservation,PLACES OF WORSHIP-GRANTS PAYABLE
64,DCMS,EH,04/02/2014,Spitalfields Hist Buildings Trust,0082002532,"35,799.00 ",Heritage Protection & Planning-Nat. Planning & Conservation,HISTORIC BUILDINGS-GRANTS PAYABLE
65,DCMS,EH,18/02/2014,St John the Baptist PCC,0082002595,"67,000.00 ",Heritage Protection & Planning-Nat. Planning & Conservation,PLACES OF WORSHIP-GRANTS PAYABLE
66,DCMS,EH,18/02/2014,St John the Baptist PCC,0082002596,"77,000.00 ",Heritage Protection & Planning-Nat. Planning & Conservation,PLACES OF WORSHIP-GRANTS PAYABLE
67,DCMS,EH,18/02/2014,St John the Baptist PCC,0082002597,"31,000.00 ",Heritage Protection & Planning-Nat. Planning & Conservation,PLACES OF WORSHIP-GRANTS PAYABLE
68,DCMS,EH,04/02/2014,St John on Bethnal Green PCC,0082002534,"28,500.00 ",Heritage Protection & Planning-Nat. Planning & Conservation,PLACES OF WORSHIP-GRANTS PAYABLE
69,DCMS,EH,07/02/2014,Cullompton Walronds Preserv Trust,0082002535,"64,350.00 ",Heritage Protection & Planning-Nat. Planning & Conservation,HISTORIC BUILDINGS-GRANTS PAYABLE
70,DCMS,EH,07/02/2014,St Swithuns DCC East Retford,0082002538,"38,921.00 ",Heritage Protection & Planning-Nat. Planning & Conservation,PLACES OF WORSHIP-GRANTS PAYABLE
71,DCMS,EH,21/02/2014,The Parish of Holy Spirit Heckmondwike,0082002602,"68,500.00 ",Heritage Protection & Planning-Nat. Planning & Conservation,PLACES OF WORSHIP-GRANTS PAYABLE
72,DCMS,EH,17/02/2014,Birmingham Conservation Trust,0082002568,"56,250.00 ",Heritage Protection & Planning-Nat. Planning & Conservation,HISTORIC BUILDINGS-GRANTS PAYABLE
73,DCMS,EH,17/02/2014,Birmingham Conservation Trust,0082002569,"56,250.00 ",Heritage Protection & Planning-Nat. Planning & Conservation,HISTORIC BUILDINGS-GRANTS PAYABLE
74,DCMS,EH,17/02/2014,Birmingham Conservation Trust,0082002581,"50,000.00 ",Heritage Protection & Planning-Nat. Planning & Conservation,HISTORIC BUILDINGS-GRANTS PAYABLE
75,DCMS,EH,17/02/2014,Birmingham Conservation Trust,0082002582,"50,000.00 ",Heritage Protection & Planning-Nat. Planning & Conservation,HISTORIC BUILDINGS-GRANTS PAYABLE
76,DCMS,EH,28/02/2014,Sunderland City Council,0082002626,"140,669.00 ",Heritage Protection & Planning-Nat. Planning & Conservation,HISTORIC BUILDINGS-GRANTS PAYABLE
77,DCMS,EH,28/02/2014,Norwich Preservation Trust,0082002632,"29,240.00 ",Heritage Protection & Planning-Nat. Planning & Conservation,HISTORIC BUILDINGS-GRANTS PAYABLE
78,DCMS,EH,17/02/2014,PCC of Church of the Epiphany,0082002589,"92,000.00 ",Heritage Protection & Planning-Nat. Planning & Conservation,PLACES OF WORSHIP-GRANTS PAYABLE
79,DCMS,EH,17/02/2014,Gateway Church,0082002579,"50,400.00 ",Heritage Protection & Planning-Nat. Planning & Conservation,PLACES OF WORSHIP-GRANTS PAYABLE
80,DCMS,EH,07/02/2014,PCC of Thrybergh St Leonard's,0082002552,"29,500.00 ",Heritage Protection & Planning-Nat. Planning & Conservation,PLACES OF WORSHIP-GRANTS PAYABLE
81,DCMS,EH,25/02/2014,PCC of St John the Evangelist,0082002618,"44,387.00 ",Heritage Protection & Planning-Nat. Planning & Conservation,PLACES OF WORSHIP-GRANTS PAYABLE
82,DCMS,EH,07/02/2014,Euston Farms,0082002557,"27,625.00 ",Heritage Protection & Planning-Nat. Planning & Conservation,HISTORIC BUILDINGS-GRANTS PAYABLE
83,DCMS,EH,24/02/2014,Boston Borough Council,0090513792,"36,852.00 ",Heritage Protection & Planning-Nat. Planning & Conservation,AREA-GRANTS PAYABLE
84,DCMS,EH,07/02/2014,Paston PCC,0082002540,"25,500.00 ",Heritage Protection & Planning-Nat. Planning & Conservation,PLACES OF WORSHIP-GRANTS PAYABLE
85,DCMS,EH,17/02/2014,St Mary de Castro PCC,0082002573,"41,977.00 ",Heritage Protection & Planning-Nat. Planning & Conservation,PLACES OF WORSHIP-GRANTS PAYABLE
86,DCMS,EH,17/02/2014,Brettenham PCC,0082002575,"67,000.00 ",Heritage Protection & Planning-Nat. Planning & Conservation,PLACES OF WORSHIP-GRANTS PAYABLE
87,DCMS,EH,17/02/2014,PCC of St Pauls Church Clifton,0082002578,"115,500.00 ",Heritage Protection & Planning-Nat. Planning & Conservation,PLACES OF WORSHIP-GRANTS PAYABLE
88,DCMS,EH,21/02/2014,St Stephens Parochial Church Council,0082002607,"30,165.00 ",Heritage Protection & Planning-Nat. Planning & Conservation,PLACES OF WORSHIP-GRANTS PAYABLE
89,DCMS,EH,21/02/2014,PCC St John Kensal Green,0082002608,"26,500.00 ",Heritage Protection & Planning-Nat. Planning & Conservation,PLACES OF WORSHIP-GRANTS PAYABLE
90,DCMS,EH,28/02/2014,Kingston-upon-Hull City Council,0082002633,"82,000.00 ",Heritage Protection & Planning-Nat. Planning & Conservation,HISTORIC BUILDINGS-GRANTS PAYABLE
91,DCMS,EH,17/02/2014,Mr H J Barber,0082002593,"32,400.00 ",Heritage Protection & Planning-Nat. Planning & Conservation,HISTORIC BUILDINGS-GRANTS PAYABLE
92,DCMS,EH,28/02/2014,PCC of the Ecclesiastical Parish of,0082002635,"105,500.00 ",Heritage Protection & Planning-Nat. Planning & Conservation,PLACES OF WORSHIP-GRANTS PAYABLE
93,DCMS,EH,18/02/2014,Garvestone Church Council,0082002598,"51,000.00 ",Heritage Protection & Planning-Nat. Planning & Conservation,PLACES OF WORSHIP-GRANTS PAYABLE
94,DCMS,EH,25/02/2014,St Mary's Church Burgh PCC,0082002622,"30,500.00 ",Heritage Protection & Planning-Nat. Planning & Conservation,PLACES OF WORSHIP-GRANTS PAYABLE
95,DCMS,EH,28/02/2014,Hindley All Saints PCC,0082002641,"42,145.00 ",Heritage Protection & Planning-Nat. Planning & Conservation,PLACES OF WORSHIP-GRANTS PAYABLE
96,DCMS,EH,25/02/2014,Ashall Projects NJS Ltd,0082002623,"297,295.00 ",Heritage Protection & Planning-Nat. Planning & Conservation,HISTORIC BUILDINGS-GRANTS PAYABLE
97,DCMS,EH,07/02/2014,St Mary's Church Sprotbrough PCC,0082002550,"31,538.00 ",Heritage Protection & Planning-Nat. Planning & Conservation,PLACES OF WORSHIP-GRANTS PAYABLE
98,DCMS,EH,28/02/2014,North Norfolk Historic Buildings Trust,0082002642,"49,750.00 ",Heritage Protection & Planning-Nat. Planning & Conservation,HISTORIC BUILDINGS-GRANTS PAYABLE
99,DCMS,EH,28/02/2014,North Norfolk Historic Buildings Trust,0082002643,"49,750.00 ",Heritage Protection & Planning-Nat. Planning & Conservation,HISTORIC BUILDINGS-GRANTS PAYABLE
100,DCMS,EH,20/02/2014,Lyme Bay Cider Company Ltd,0001082968,"25,855.44 ",National Collections-Historic Properties Department,Goods & Souvenirs Purchases
101,DCMS,EH,25/02/2014,Lyme Bay Cider Company Ltd,0001082999,"35,664.28 ",National Collections-Historic Properties Department,Goods & Souvenirs Purchases
102,DCMS,EH,28/02/2014,Lyme Bay Cider Company Ltd,0001083026,"45,703.87 ",National Collections-Historic Properties Department,Goods & Souvenirs Purchases
103,DCMS,EH,10/02/2014,Lyme Bay Cider Company Ltd,0060002080,"36,936.35 ",National Collections-Historic Properties Department,Goods & Souvenirs Purchases
